bitfinex/quotes_BTCUSD_20250110
["timestamp","ask_amount","ask_price","bid_price","bid_amount"]
[1736531189560,0.21173,94460.0,94455.0,0.001]
[1736531189681,0.31602976,94460.0,94455.0,0.001]
[1736531189885,0.10429976,94460.0,94455.0,0.001]
[1736531190293,0.00014556,94475.0,94455.0,0.001]
[1736531190539,0.215698,94474.0,94453.0,0.023]
[1736531190766,0.211698,94474.0,94453.0,0.446488]
[1736531190962,0.00014556,94475.0,94453.0,0.023]
[1736531191169,0.00014556,94475.0,94468.0,0.211711]
[1736531191370,0.00014556,94475.0,94469.0,0.0777]
[1736531192886,0.00214556,94475.0,94470.0,0.211707]
[1736531193135,0.00214556,94475.0,94471.0,0.0466]
[1736531193391,0.00014556,94475.0,94471.0,0.0466]
[1736531194650,0.21184156,94475.0,94459.0,0.0768]
[1736531195115,0.21184156,94475.0,94459.0,0.08759633]
[1736531195311,0.10429976,94474.0,94456.0,0.0496]
[1736531195544,0.00014556,94475.0,94456.0,0.0496]
[1736531195740,0.00014556,94475.0,94461.0,0.211727]
[1736531195991,0.00014556,94475.0,94471.0,0.003]
[1736531196717,0.00014556,94475.0,94469.0,0.211709]
[1736531196930,0.00114556,94475.0,94471.0,0.211705]
[1736531197487,0.00014556,94475.0,94471.0,0.211705]
[1736531197750,0.00014556,94475.0,94471.0,0.001]
[1736531198414,0.00014556,94475.0,94471.0,0.01166092]
[1736531198616,0.001,94474.0,94472.0,0.211702]
[1736531198820,0.00014556,94475.0,94472.0,0.211702]
[1736531199231,0.00014556,94475.0,94471.0,0.001]
[1736531199637,0.00014556,94475.0,94470.0,0.0752]
[1736531199837,0.00014556,94475.0,94472.0,0.001]
[1736531200142,0.00014556,94475.0,94473.0,0.2117]
[1736531200734,0.00014556,94475.0,94474.0,0.02405842]
[1736531200941,0.00014556,94475.0,94474.0,0.07265835]
[1736531201138,0.00014556,94475.0,94474.0,0.17695811]
[1736531201504,0.00014556,94475.0,94474.0,0.25995811]
[1736531201715,0.00014556,94475.0,94474.0,0.25889976]
[1736531202174,0.00114556,94475.0,94474.0,0.26189976]
[1736531202411,0.00014556,94475.0,94474.0,0.25889976]
[1736531203414,0.00114556,94475.0,94474.0,0.26189976]
[1736531203846,0.00114556,94475.0,94474.0,0.26689976]
[1736531204539,0.00114556,94475.0,94474.0,0.351298]
[1736531204734,0.00014556,94475.0,94474.0,0.14512]
[1736531204942,0.00114556,94475.0,94474.0,0.15412]
[1736531205578,0.00114556,94475.0,94474.0,0.14912]
[1736531205907,0.00114556,94475.0,94474.0,0.15212]
[1736531206365,0.00014556,94475.0,94474.0,0.14012]
[1736531206601,0.00014556,94475.0,94474.0,0.14212]
[1736531206713,0.00014556,94475.0,94474.0,0.14312]
[1736531206919,0.00014556,94475.0,94474.0,0.27147815]
[1736531207118,0.00014556,94475.0,94474.0,0.26941976]
[1736531208009,0.00014556,94475.0,94474.0,0.26741976]
[1736531208420,0.00114556,94475.0,94474.0,0.27341976]
[1736531208683,0.00014556,94475.0,94474.0,0.26741976]
[1736531208862,0.00014556,94475.0,94474.0,0.27041976]
[1736531209061,0.00014556,94475.0,94474.0,0.27541976]
[1736531209062,0.00114556,94475.0,94474.0,0.27541976]
[1736531209311,0.00114556,94475.0,94474.0,1.77541976]
[1736531209477,0.00114556,94475.0,94474.0,0.16812]
[1736531209655,0.00114556,94475.0,94474.0,0.17212]
[1736531209871,0.00014556,94475.0,94474.0,0.1356]
[1736531210073,0.00014556,94475.0,94474.0,0.004]
[1736531210274,0.00014556,94475.0,94467.0,0.00852]
[1736531210471,0.00014556,94475.0,94474.0,0.004]
[1736531210669,0.00014556,94475.0,94474.0,0.00505847]
[1736531210931,0.00014556,94475.0,94474.0,0.21425823]
[1736531211073,0.00014556,94475.0,94474.0,0.25989976]
[1736531211255,0.00114556,94475.0,94474.0,0.36589902]
[1736531211449,0.00114556,94475.0,94474.0,1.86589902]
[1736531211681,0.00014556,94475.0,94474.0,1.85989902]
[1736531211891,0.00114556,94475.0,94474.0,1.86489902]
[1736531212083,0.00114556,94475.0,94474.0,1.893311]
[1736531212282,0.00114556,94475.0,94474.0,1.86189902]
[1736531212544,0.00214556,94475.0,94474.0,1.90031762]
[1736531212834,4e-07,94477.0,94476.0,0.19999926]
[1736531213040,8.54e-05,94508.0,94499.0,0.1298]
[1736531213276,8.54e-05,94508.0,94499.0,0.47831982]
[1736531213490,8.54e-05,94508.0,94499.0,0.47726176]
[1736531214930,8.54e-05,94508.0,94499.0,0.49869711]
[1736531215542,8.54e-05,94508.0,94499.0,0.59869637]
[1736531215744,8.54e-05,94508.0,94499.0,0.75928897]
[1736531215944,0.001,94500.0,94499.0,2.26728897]
[1736531216175,8.54e-05,94513.0,94509.0,0.09999926]
[1736531216388,8.54e-05,94513.0,94512.0,0.31979926]
[1736531216585,8.53e-05,94517.0,94516.0,0.48460326]
[1736531216764,8.53e-05,94517.0,94516.0,2.08890302]
[1736531217558,0.00023083,94517.0,94516.0,2.08890302]
[1736531217980,0.00023083,94517.0,94516.0,1.711604]
[1736531218184,0.00023083,94517.0,94516.0,0.23060767]
[1736531218677,0.00023083,94517.0,94516.0,0.01048367]
[1736531218893,0.00123083,94517.0,94516.0,0.01848367]
[1736531219092,0.00223083,94517.0,94516.0,0.014]
[1736531219321,0.00123083,94517.0,94516.0,0.006]
[1736531219507,0.00223083,94517.0,94516.0,0.015]
[1736531219810,0.00223083,94517.0,94501.0,0.259736]
[1736531219811,0.00023083,94517.0,94511.0,0.00852]
[1736531220012,0.00023083,94517.0,94516.0,0.004]
[1736531220520,0.00023083,94517.0,94510.0,0.01040402]
[1736531220842,0.00023083,94517.0,94516.0,0.001]
[1736531221041,0.00023083,94517.0,94516.0,0.00205791]
[1736531221542,0.00023083,94517.0,94516.0,0.11005791]
[1736531221784,0.00023083,94517.0,94516.0,0.10605791]
[1736531222267,0.00023083,94517.0,94516.0,0.104]
[1736531222526,0.00023083,94517.0,94516.0,0.105]
[1736531223128,0.00123083,94517.0,94516.0,0.11305784]
[1736531223333,0.00123083,94517.0,94516.0,0.11605784]
[1736531223988,0.00123083,94517.0,94516.0,0.11305784]
[1736531224449,0.00023083,94517.0,94516.0,0.10505784]
[1736531224966,0.00123083,94517.0,94516.0,0.22802481]
[1736531225222,0.00023083,94517.0,94516.0,0.36896697]
[1736531225469,0.00123083,94517.0,94516.0,0.47696623]
[1736531225675,0.00123083,94517.0,94516.0,0.48096623]
[1736531225875,0.00123083,94517.0,94516.0,1.98096623]
[1736531226282,0.00023083,94517.0,94516.0,1.96896623]
[1736531226483,0.00023083,94517.0,94516.0,1.97196623]
[1736531226634,8.3e-07,94517.0,94516.0,1.97196623]
[1736531226837,0.1245,94564.0,94516.0,1.97196623]
[1736531226838,0.0752,94564.0,94533.0,0.211566]
[1736531227063,0.0752,94564.0,94533.0,0.34738576]
[1736531227483,0.211509,94559.0,94533.0,1.743086]
[1736531227697,0.0752,94564.0,94526.0,0.211581]
[1736531227867,0.15,94545.0,94516.0,0.005]
[1736531228074,0.001,94517.0,94516.0,0.224604]
[1736531228273,0.001,94517.0,94516.0,0.247604]
[1736531228670,0.001,94517.0,94516.0,0.256124]
[1736531229097,0.0477,94562.0,94522.0,0.023]
[1736531229298,0.0477,94562.0,94533.0,0.239566]
[1736531229502,0.2115983,94557.0,94533.0,0.241566]
[1736531229686,0.2115983,94557.0,94533.0,0.213566]
[1736531229884,0.2115983,94557.0,94533.0,0.211566]
[1736531231142,8.53e-05,94557.0,94533.0,0.236566]
[1736531231819,8.53e-05,94557.0,94533.0,0.241566]
[1736531232049,0.44782948,94582.0,94550.0,0.08147052]
[1736531232274,0.0001455,94555.0,94550.0,0.08147052]
[1736531233247,0.0001455,94555.0,94550.0,0.08247052]
[1736531233454,0.0001455,94555.0,94550.0,0.08347052]
[1736531233631,0.0001455,94555.0,94550.0,0.002]
[1736531233831,0.0001455,94555.0,94550.0,0.001]
[1736531234241,0.0011455,94555.0,94550.0,0.001]
[1736531234436,0.0011455,94555.0,94550.0,0.08247052]
[1736531234643,0.0011455,94555.0,94551.0,0.211526]
[1736531234844,0.0011455,94555.0,94554.0,0.08147052]
[1736531235053,0.0011455,94555.0,94554.0,0.08252805]
[1736531235342,0.0011455,94555.0,94554.0,0.08147052]
[1736531235477,0.0041455,94555.0,94554.0,0.08147052]
[1736531235676,0.0001455,94555.0,94554.0,0.08147052]
[1736531235879,0.0011455,94555.0,94554.0,0.08147052]
[1736531236110,0.0011455,94555.0,94554.0,0.08247052]
[1736531236318,0.0011455,94555.0,94552.0,0.211522]
[1736531236319,0.0001455,94555.0,94552.0,0.08147052]
[1736531236513,0.0001455,94555.0,94554.0,0.29298952]
[1736531236717,0.0001455,94555.0,94554.0,0.30298952]
[1736531237072,0.0001455,94555.0,94554.0,0.29998952]
[1736531237275,0.0001455,94555.0,94554.0,0.32298952]
[1736531237725,0.0001455,94555.0,94554.0,0.36968952]
[1736531238919,0.0001455,94555.0,94554.0,0.46698928]
[1736531239179,0.0001455,94555.0,94554.0,0.80118854]
[1736531239322,0.0001455,94555.0,94554.0,2.30118854]
[1736531239574,0.0001455,94555.0,94554.0,2.29718854]
[1736531239805,0.0001455,94555.0,94554.0,2.30418854]
[1736531240328,0.0001455,94555.0,94554.0,2.30118854]
[1736531240470,0.0001455,94555.0,94554.0,2.29918854]
[1736531241973,0.0001455,94555.0,94554.0,2.29418854]
[1736531242185,0.0001455,94555.0,94554.0,2.30918854]
[1736531242610,0.0001455,94555.0,94554.0,0.62771876]
[1736531242841,0.0001455,94555.0,94554.0,0.70918928]
[1736531243042,0.0001455,94555.0,94554.0,0.71770928]
[1736531243844,0.0001455,94555.0,94554.0,0.63623876]
[1736531245020,0.0001455,94555.0,94554.0,0.55918928]
[1736531245148,0.0001455,94555.0,94554.0,0.46340952]
[1736531245366,0.0001455,94555.0,94554.0,0.56770928]
[1736531245911,0.0001455,94555.0,94554.0,0.55270928]
[1736531246333,0.0332,94594.0,94569.0,0.08147052]
[1736531246657,0.10429976,94593.0,94569.0,0.08147052]
[1736531246833,0.211434,94592.0,94570.0,0.211483]
[1736531247063,0.10429976,94591.0,94570.0,0.211483]
[1736531247289,0.10429976,94591.0,94570.0,0.417966]
[1736531247676,0.211438,94590.0,94570.0,0.206483]
[1736531247832,0.211443,94588.0,94570.0,0.206483]
[1736531248192,0.10429976,94588.0,94570.0,0.206483]
[1736531248452,0.10429976,94588.0,94576.0,0.08147052]
[1736531249613,0.10529976,94588.0,94576.0,0.08147052]
[1736531250023,0.10829976,94588.0,94576.0,0.08147052]
[1736531250860,0.004,94588.0,94580.0,0.08147052]
[1736531251110,0.004,94588.0,94582.0,0.211456]
[1736531251347,0.004,94588.0,94580.0,0.08147052]
[1736531251584,0.004,94588.0,94581.0,0.211458]
[1736531251793,0.003,94588.0,94581.0,0.211458]
[1736531251998,0.00014547,94594.0,94581.0,0.211458]
[1736531252221,0.003,94588.0,94580.0,0.08147052]
[1736531252428,0.00014547,94594.0,94581.0,0.211458]
[1736531252604,0.001,94588.0,94580.0,0.08147052]
[1736531252823,0.001,94588.0,94581.0,0.001]
[1736531253036,0.00014547,94594.0,94578.0,0.01035473]
[1736531253290,0.10429976,94593.0,94569.0,0.08147052]
[1736531253478,0.10429976,94593.0,94580.0,0.001]
[1736531253735,0.211434,94592.0,94575.0,0.08147052]
[1736531253908,0.10429976,94591.0,94575.0,0.29294152]
[1736531254115,0.10429976,94592.0,94578.0,0.211464]
[1736531254384,0.00014547,94594.0,94578.0,0.29293452]
[1736531254588,0.00014547,94594.0,94580.0,0.08147052]
[1736531254930,0.21157547,94594.0,94578.0,0.08147052]
[1736531255108,0.21357547,94594.0,94578.0,0.08147052]
[1736531255331,0.21357547,94594.0,94581.0,0.001]
[1736531255502,0.21357547,94594.0,94578.0,0.08147052]
[1736531255814,0.21657547,94594.0,94578.0,0.08147052]
[1736531256005,0.21857547,94594.0,94578.0,0.08147052]
[1736531256164,0.21357547,94594.0,94577.0,0.08147052]
[1736531256361,0.00514547,94594.0,94577.0,0.211467]
[1736531256567,0.00514547,94594.0,94580.0,0.08147052]
[1736531256795,0.00714547,94594.0,94580.0,0.08147052]
[1736531256996,0.00064547,94594.0,94580.0,0.08147052]
[1736531258173,0.00064547,94594.0,94581.0,0.211458]
[1736531258485,0.0332,94592.0,94561.0,0.0472]
[1736531258708,0.0332,94592.0,94559.0,0.00014547]
[1736531258709,0.0085,94589.0,94559.0,0.00014547]
[1736531258894,0.211478,94573.0,94563.0,0.08147052]
[1736531259049,0.10429976,94572.0,94563.0,0.08147052]
[1736531259253,0.10429976,94572.0,94559.0,0.00014547]
[1736531259453,0.211497,94564.0,94559.0,0.00014547]
[1736531259643,0.31579676,94564.0,94559.0,0.00014547]
[1736531260272,0.211505,94560.0,94559.0,0.00014547]
[1736531260517,0.31580476,94560.0,94559.0,0.00014547]
[1736531260924,0.46580476,94560.0,94559.0,0.00014547]
[1736531262867,0.46680476,94560.0,94559.0,0.00014547]
[1736531263854,0.46880476,94560.0,94559.0,0.00014547]
[1736531265778,0.10729976,94560.0,94559.0,0.00014547]
[1736531266598,0.10529976,94560.0,94559.0,0.00014547]
[1736531266837,0.10729976,94560.0,94559.0,0.00014547]
[1736531267174,0.10529976,94560.0,94559.0,0.00014547]
[1736531267385,0.10629976,94560.0,94559.0,0.00014547]
[1736531267786,0.10729976,94560.0,94559.0,0.00014547]
[1736531268335,0.10629976,94560.0,94559.0,0.00014547]
[1736531268537,0.10729976,94560.0,94559.0,0.00014547]
[1736531269118,0.10629976,94560.0,94559.0,0.00014547]
[1736531269437,0.10529976,94560.0,94559.0,0.00014547]
[1736531269643,0.10829976,94560.0,94559.0,0.00014547]
[1736531269845,0.10529976,94560.0,94559.0,0.00014547]
[1736531270391,0.10729976,94560.0,94559.0,0.00014547]
[1736531271119,0.25729976,94560.0,94559.0,0.00014547]
[1736531274397,0.27032048,94560.0,94559.0,0.00014547]
[1736531277897,0.30352048,94560.0,94559.0,0.00014547]
[1736531278096,0.39400143,94560.0,94559.0,0.00014547]
[1736531278319,0.39300143,94560.0,94559.0,0.00014547]
[1736531278727,0.39400143,94560.0,94559.0,0.00014547]
[1736531279101,0.39100143,94560.0,94559.0,0.00014547]
[1736531279334,0.40953091,94560.0,94559.0,0.00014547]
[1736531279481,0.41653091,94560.0,94559.0,0.00014547]
[1736531279685,0.43612391,94560.0,94559.0,0.00014547]
[1736531280085,0.44312391,94560.0,94559.0,0.00114547]
[1736531280792,0.43112391,94560.0,94559.0,0.00014547]
[1736531280969,0.43612391,94560.0,94559.0,0.00014547]
[1736531281170,0.27232048,94560.0,94559.0,0.00014547]
[1736531281600,0.26732048,94560.0,94559.0,0.00014547]
[1736531281810,0.27232048,94560.0,94559.0,0.00014547]
[1736531282200,0.25429976,94560.0,94559.0,0.00014547]
[1736531282607,0.26529976,94560.0,94559.0,0.00114547]
[1736531282810,0.25829976,94560.0,94559.0,0.00014547]
[1736531283221,0.11529976,94560.0,94559.0,0.00114547]
[1736531283647,0.10829976,94560.0,94559.0,0.00014547]
[1736531283848,0.11229976,94560.0,94559.0,0.08104547]
[1736531284076,0.10829976,94560.0,94559.0,0.08104547]
[1736531284227,0.10629976,94560.0,94559.0,0.08104547]
[1736531284531,0.005,94560.0,94559.0,0.08104547]
[1736531284722,0.005,94560.0,94559.0,0.16251599]
[1736531285031,0.003,94560.0,94559.0,0.18551599]
[1736531285230,0.004,94560.0,94559.0,0.18551599]
[1736531285649,0.003,94560.0,94559.0,0.18551599]
[1736531285857,0.003,94560.0,94559.0,0.23587338]
[1736531286081,0.003,94560.0,94559.0,0.23781599]
[1736531286436,0.003,94560.0,94559.0,0.25092269]
[1736531286637,0.21145,94585.0,94559.0,0.25092269]
[1736531286834,0.10429976,94584.0,94563.0,0.08147052]
[1736531287178,0.211463,94579.0,94561.0,0.211503]
[1736531287407,0.10429976,94579.0,94564.0,0.211495]
[1736531288036,0.10429976,94579.0,94563.0,0.08147052]
[1736531288037,0.10429976,94579.0,94568.0,0.211486]
[1736531288480,0.15,94589.0,94572.0,0.211477]
[1736531288661,0.10429976,94588.0,94572.0,0.211477]
[1736531290138,0.002,94579.0,94570.0,0.211482]
[1736531290365,0.15,94586.0,94570.0,0.211482]
[1736531290544,0.211452,94584.0,94563.0,0.08147052]
[1736531290745,0.211452,94584.0,94560.0,0.211505]
[1736531290746,0.211469,94577.0,94560.0,0.211505]
[1736531290955,0.211481,94572.0,94559.0,0.13034547]
[1736531291105,0.004,94588.0,94559.0,0.13034547]
[1736531291106,0.10429976,94571.0,94559.0,0.13034547]
[1736531291312,0.10429976,94571.0,94560.0,0.08147052]
[1736531291518,0.15,94582.0,94562.0,0.08147052]
[1736531291729,0.10429976,94581.0,94563.0,0.422997]
[1736531291941,0.001,94577.0,94563.0,0.211498]
[1736531292207,0.10429976,94576.0,94563.0,0.211498]
[1736531292405,0.002,94571.0,94563.0,0.422997]
[1736531292611,0.002,94571.0,94568.0,0.211487]
[1736531292827,0.001,94577.0,94572.0,0.211478]
[1736531293066,0.001,94577.0,94575.0,0.21147]
[1736531293230,0.001,94577.0,94576.0,0.21327052]
[1736531293432,0.211424,94597.0,94581.0,0.211457]
[1736531293635,0.10429976,94596.0,94581.0,0.211457]
[1736531294434,0.211427,94595.0,94580.0,0.08147052]
[1736531294632,0.10429976,94594.0,94580.0,0.08147052]
[1736531295447,0.2114,94608.0,94582.0,0.08147052]
[1736531295637,8.54e-05,94612.0,94575.0,0.22384254]
[1736531295638,0.002,94595.0,94594.0,0.12687052]
[1736531295903,0.002,94595.0,94594.0,0.20347052]
[1736531296115,8.54e-05,94612.0,94602.0,0.29288252]
[1736531296331,0.0057065,94603.0,94602.0,0.36948252]
[1736531297164,0.0057065,94603.0,94602.0,0.39248252]
[1736531297580,0.0057065,94603.0,94602.0,0.39548252]
[1736531297788,0.0057065,94603.0,94602.0,0.39248252]
[1736531298225,0.0057065,94603.0,94602.0,0.40048252]
[1736531298226,0.0067065,94603.0,94602.0,0.40048252]
[1736531298642,0.0057065,94603.0,94602.0,0.37348252]
[1736531299731,0.0057065,94603.0,94602.0,1.86948252]
[1736531300334,0.0057065,94603.0,94602.0,0.0766]
[1736531300651,0.0067065,94603.0,94602.0,0.0856]
[1736531301261,0.0067065,94603.0,94602.0,0.0886]
[1736531301431,0.0057065,94603.0,94602.0,0.0796]
[1736531301755,0.0067065,94603.0,94602.0,0.0846]
[1736531301955,0.0057065,94603.0,94602.0,0.0766]
[1736531302120,0.0057065,94603.0,94602.0,0.0776]
[1736531302316,0.0067065,94603.0,94602.0,0.0776]
[1736531302529,0.0067065,94603.0,94602.0,0.0766]
[1736531302938,0.0077065,94603.0,94602.0,0.0766]
[1736531303583,0.0077065,94603.0,94602.0,0.288012]
[1736531303789,0.0077065,94603.0,94602.0,0.39248252]
[1736531303790,0.0067065,94603.0,94602.0,0.39248252]
[1736531303993,0.0077065,94603.0,94602.0,1.99678228]
[1736531304190,0.0067065,94603.0,94602.0,2.04488228]
[1736531304367,0.0057065,94603.0,94602.0,2.04488228]
[1736531304572,0.0057065,94603.0,94602.0,2.04588228]
[1736531304778,0.0057065,94603.0,94602.0,2.04788228]
[1736531305001,0.0057065,94603.0,94602.0,2.04488228]
[1736531305411,0.0067065,94603.0,94602.0,2.05688228]
[1736531305646,0.0057065,94603.0,94602.0,2.04788228]
[1736531305804,0.0057065,94603.0,94602.0,2.04488228]
[1736531306043,0.0057065,94603.0,94602.0,2.21586704]
[1736531306246,0.0057065,94603.0,94602.0,2.22086704]
[1736531306543,8.54e-05,94612.0,94611.0,0.43766152]
[1736531306734,8.54e-05,94612.0,94611.0,0.65048054]
[1736531307400,8.54e-05,94612.0,94611.0,2.15048054]
[1736531307938,8.54e-05,94612.0,94611.0,2.15348054]
[1736531308348,8.52e-05,94618.0,94617.0,0.340878]
[1736531308572,8.52e-05,94618.0,94617.0,0.54964828]
[1736531309374,8.52e-05,94618.0,94617.0,0.55164828]
[1736531311851,8.52e-05,94618.0,94617.0,2.05164828]
[1736531312194,8.52e-05,94618.0,94617.0,2.05764828]
[1736531312863,8.52e-05,94618.0,94617.0,2.15764754]
[1736531313286,8.52e-05,94618.0,94617.0,2.17872372]
[1736531313986,8.52e-05,94618.0,94617.0,2.17072372]
[1736531314442,8.52e-05,94618.0,94617.0,2.18372372]
[1736531317853,8.52e-05,94618.0,94617.0,2.00225394]
[1736531318512,8.52e-05,94618.0,94617.0,0.43534852]
[1736531318722,8.52e-05,94618.0,94617.0,0.1425]
[1736531319155,8.52e-05,94618.0,94617.0,0.09447052]
[1736531319461,8.52e-05,94618.0,94617.0,0.013]
[1736531319670,8.52e-05,94618.0,94617.0,0.09447052]
[1736531319878,8.52e-05,94618.0,94617.0,0.11852733]
[1736531320088,8.52e-05,94618.0,94617.0,0.11747052]
[1736531320303,8.52e-05,94618.0,94617.0,0.22177028]
[1736531320505,8.52e-05,94618.0,94617.0,0.44986954]
[1736531320924,8.52e-05,94618.0,94617.0,1.94986954]
[1736531321332,5.2e-06,94618.0,94617.0,1.94986954]
[1736531322389,5.2e-06,94618.0,94617.0,2.09986954]
[1736531322593,8.53e-05,94629.0,94625.0,0.18647052]
[1736531322804,0.00023062,94626.0,94625.0,0.29182681]
[1736531323016,0.00023062,94626.0,94625.0,0.29077028]
[1736531323440,9.2e-07,94629.0,94628.0,0.08147052]
[1736531323645,0.11249565,94648.0,94647.0,0.59328152]
[1736531323861,0.06852675,94648.0,94647.0,0.80606128]
[1736531324067,0.06852675,94648.0,94647.0,2.30606128]
[1736531324274,8.1e-07,94650.0,94649.0,0.09999926]
[1736531324480,0.0141381,94672.0,94662.0,0.31574852]
[1736531324684,0.05048463,94663.0,94662.0,0.54494828]
[1736531325240,0.05048463,94663.0,94662.0,0.79494754]
[1736531325440,8.52e-05,94675.0,94674.0,0.18146978]
[1736531325645,0.00023056,94675.0,94674.0,0.52850541]
[1736531325845,0.00023056,94675.0,94674.0,0.55044954]
[1736531326045,0.00023056,94675.0,94674.0,2.05044954]
[1736531326494,0.00023056,94675.0,94674.0,2.07207031]
[1736531326725,0.00023056,94675.0,94674.0,2.17207031]
[1736531327078,0.00023056,94675.0,94674.0,2.07207031]
[1736531327284,0.00023056,94675.0,94674.0,2.17207031]
[1736531327808,0.0017153,94691.0,94682.0,0.08147052]
[1736531328005,0.0017153,94691.0,94682.0,0.35982619]
[1736531328238,0.0017153,94691.0,94682.0,0.35877028]
[1736531329147,7.779e-05,94689.0,94688.0,0.29269052]
[1736531329370,7.779e-05,94689.0,94688.0,0.31569052]
[1736531330133,7.779e-05,94689.0,94684.0,0.211228]
[1736531330135,7.779e-05,94689.0,94682.0,0.012]
[1736531330136,7.779e-05,94689.0,94685.0,0.08147052]
[1736531330384,7.779e-05,94689.0,94682.0,0.02048]
[1736531330385,7.779e-05,94689.0,94688.0,0.08147052]
[1736531330626,7.779e-05,94689.0,94688.0,0.29269052]
[1736531330886,7.779e-05,94689.0,94688.0,0.32369052]
[1736531331325,7.779e-05,94689.0,94688.0,0.4407542]
[1736531331569,7.779e-05,94689.0,94688.0,0.5169542]
[1736531331816,7.779e-05,94689.0,94688.0,0.5254342]
[1736531332799,7.779e-05,94689.0,94688.0,0.54661604]
[1736531333065,7.779e-05,94689.0,94688.0,0.69661604]
[1736531333356,7.779e-05,94689.0,94688.0,0.8425153]
[1736531333876,7.779e-05,94689.0,94688.0,0.9425153]
[1736531334127,0.00012798,94714.0,94712.0,0.08147052]
[1736531334652,0.00012798,94714.0,94712.0,0.65257104]
[1736531334892,2.5e-07,94720.0,94719.0,0.64261978]
[1736531334917,0.0389,94774.0,94719.0,0.64261978]
[1736531334918,0.001,94777.0,94728.0,0.63339]
[1736531335126,0.001,94777.0,94745.0,0.31556252]
[1736531335371,0.001,94777.0,94745.0,0.75594154]
[1736531335372,4e-08,94746.0,94745.0,0.75594154]
[1736531335601,4e-08,94746.0,94745.0,0.64426154]
[1736531335849,4e-08,94746.0,94745.0,2.04426228]
[1736531336100,4e-08,94746.0,94745.0,2.23630114]
[1736531336361,0.001,94777.0,94749.0,0.18146978]
[1736531336362,0.00791738,94750.0,94749.0,0.18146978]
[1736531336591,0.00791738,94750.0,94749.0,0.43682463]
[1736531336766,0.001,94777.0,94757.0,0.29253652]
[1736531336975,0.001,94777.0,94757.0,0.39683628]
[1736531337185,0.001,94777.0,94757.0,0.41983628]
[1736531338084,0.001,94777.0,94757.0,0.52883554]
[1736531338296,0.001,94777.0,94757.0,0.53183554]
[1736531338513,0.001,94777.0,94757.0,0.68183554]
[1736531338726,0.001,94777.0,94765.0,0.39251778]
[1736531338936,0.001,94777.0,94765.0,0.79491754]
[1736531339142,0.001,94777.0,94765.0,2.29491754]
[1736531339560,0.00106893,94786.0,94765.0,2.29491754]
[1736531339561,0.00106893,94786.0,94785.0,0.08147052]
[1736531339763,0.00089853,94786.0,94785.0,0.21725028]
[1736531340006,7e-05,94800.0,94795.0,0.29245152]
[1736531340255,0.1,94854.0,94795.0,0.29245152]
[1736531340256,0.00012751,94870.0,94843.0,0.09718846]
[1736531340528,0.00012751,94870.0,94847.0,0.09718846]
[1736531340772,0.00012751,94870.0,94834.0,0.210893]
[1736531340773,0.18569976,94858.0,94834.0,0.210893]
[1736531340984,0.18569976,94858.0,94829.0,0.08147052]
[1736531340985,0.18569976,94858.0,94832.0,0.09718846]
[1736531341211,0.15,94851.0,94830.0,0.09718846]
[1736531341430,0.15,94851.0,94812.0,0.00848]
[1736531341431,0.01852948,94848.0,94812.0,0.08147052]
[1736531341645,0.10429976,94847.0,94819.0,0.09718846]
[1736531341851,0.10429976,94847.0,94826.0,0.09718846]
[1736531342060,8.52e-05,94853.0,94835.0,0.09718846]
[1736531342275,8.52e-05,94853.0,94839.0,0.09718846]
[1736531342500,8.52e-05,94853.0,94842.0,0.09718846]
[1736531342713,8.52e-05,94853.0,94852.0,0.09718846]
[1736531342919,8.52e-05,94853.0,94852.0,0.18713898]
[1736531343134,8.52e-05,94853.0,94852.0,0.2111932]
[1736531343343,8.52e-05,94853.0,94852.0,0.46443874]
[1736531343556,6.2e-07,94859.0,94858.0,0.32865898]
[1736531343781,6.2e-07,94859.0,94858.0,0.68485874]
[1736531344001,0.07865359,94892.0,94891.0,0.08147052]
[1736531344255,0.00782084,94892.0,94891.0,0.61989244]
[1736531344517,0.01852948,94988.0,94947.0,0.08147052]
[1736531344736,0.10474178,94971.0,94952.0,0.09718846]
[1736531345036,0.10474178,94971.0,94949.0,0.17865898]
[1736531345037,0.10429976,94970.0,94949.0,0.17865898]
[1736531345412,0.00058722,94971.0,94959.0,0.09718846]
[1736531345624,0.00058722,94971.0,94954.0,0.09718846]
[1736531345625,0.10429976,94970.0,94954.0,0.09718846]
[1736531345839,0.00058722,94971.0,94959.0,0.09718846]
[1736531346062,0.00058722,94971.0,94957.0,0.09718846]
[1736531346283,0.00058722,94971.0,94958.0,0.09718846]
[1736531346509,0.00058722,94971.0,94970.0,0.09718846]
[1736531346726,0.00058722,94971.0,94970.0,0.28295874]
[1736531347156,0.00058722,94971.0,94970.0,0.29287874]
[1736531347379,0.00058722,94971.0,94970.0,0.08147052]
[1736531347629,0.00058722,94971.0,94970.0,0.17865898]
[1736531348059,0.00058722,94971.0,94970.0,0.28401154]
[1736531348280,0.00058722,94971.0,94970.0,0.09718846]
[1736531348493,0.00058722,94971.0,94970.0,0.10218846]
[1736531348727,0.00058722,94971.0,94970.0,0.005]
[1736531348978,0.00058722,94971.0,94970.0,0.18365898]
[1736531349181,0.00058722,94971.0,94970.0,0.4996037]
[1736531349388,0.00058722,94971.0,94970.0,0.49855074]
[1736531349606,0.00058722,94971.0,94970.0,0.40417098]
[1736531349829,0.00058722,94971.0,94970.0,0.005]
[1736531350053,0.00058722,94971.0,94968.0,0.09718846]
[1736531350292,0.00058722,94971.0,94970.0,0.18165898]
[1736531350503,0.00058722,94971.0,94970.0,0.08447052]
[1736531350931,0.00058722,94971.0,94970.0,0.09718846]
[1736531351142,0.00058722,94971.0,94970.0,0.002]
[1736531351575,0.00058722,94971.0,94969.0,0.08147052]
[1736531351822,0.00058722,94971.0,94970.0,0.17865898]
[1736531352035,0.00058722,94971.0,94970.0,0.28601158]
[1736531352247,0.00058722,94971.0,94970.0,0.28495874]
[1736531352461,0.00058722,94971.0,94970.0,0.38445874]
[1736531352688,0.21576802,94978.0,94977.0,0.42865898]
[1736531352943,0.21576802,94978.0,94977.0,0.63295874]
[1736531353156,0.2035419,95000.0,94991.0,0.17865898]
[1736531353362,0.2035419,95000.0,94991.0,0.28295874]
[1736531353788,0.2035419,95000.0,94991.0,0.30595874]
[1736531354018,0.2035419,95000.0,94991.0,0.28295874]
[1736531354228,0.2035419,95000.0,94991.0,0.20148822]
[1736531354463,0.2035419,95000.0,94991.0,0.007]
[1736531354909,0.2035419,95000.0,94982.0,0.08147052]
[1736531355152,0.2035419,95000.0,94991.0,0.005]
[1736531355409,0.10491109,94992.0,94991.0,0.005]
[1736531355659,0.17134102,94991.0,94953.0,0.09718846]
[1736531355916,0.17134102,94991.0,94933.0,0.0108]
[1736531355917,0.15281154,94989.0,94958.0,0.08147052]
[1736531356132,0.00061133,94992.0,94952.0,0.09718846]
[1736531356133,0.10429976,94988.0,94967.0,0.210599]
[1736531356344,0.10429976,94988.0,94969.0,0.08147052]